fUSD/lending_fUSD_20250906
["ID","MTS","AMOUNT","RATE_DAILY","PERIOD"]
[383931273,1757179846357,-150.0,0.00032231,20]
[383931275,1757179846367,-22476.90620554,0.00032259,2]
[383931277,1757179846376,-600.0,0.00032261,2]
[383931279,1757179846386,-200.0,0.00032261,2]
[383931281,1757179846395,-202.55734374,0.00032261,2]
[383931283,1757179846404,-160.0,0.000323,10]
[383931284,1757179846413,-179.0,0.00032315,2]
[383931286,1757179846422,-519.01255377,0.00032328,2]
[383931287,1757179846432,-500.0,0.00032328,2]
[383931288,1757179846441,-500.0,0.00032328,2]
[383931289,1757179846452,-500.0,0.00032328,2]
[383931290,1757179846463,-500.0,0.00032328,2]
[383931291,1757179846472,-1291.0,0.00032328,2]
[383931292,1757179846482,-500.0,0.00032328,2]
[383931293,1757179846492,-500.0,0.00032328,2]
[383931294,1757179846501,-1477.0,0.00032328,2]
[383931295,1757179846511,-645.0,0.00032328,2]
[383931296,1757179846521,-467.94026462,0.00032336,3]
[383931297,1757179846530,-792.23,0.00032466,2]
[383931298,1757179846540,-442.33,0.00032466,2]
[383931299,1757179846550,-1189.21,0.00032466,2]
[383931300,1757179846560,-292.42,0.00032466,2]
[383931301,1757179846570,-150.0,0.00032466,2]
[383931302,1757179846580,-174.35,0.00032466,2]
[383931303,1757179846589,-541.44,0.00032466,2]
[383931304,1757179846599,-151.36,0.00032466,2]
[383931305,1757179846608,-300.0,0.00032466,2]
[383931306,1757179846618,-5015.0,0.0003252,2]
[383931307,1757179846628,-5015.0,0.00032525,7]
[383931308,1757179846637,-151.0,0.0003253,2]
[383931309,1757179846647,-99360.2594121,0.00032563,2]
[383931310,1757179846657,-500.0,0.00032602,2]
[383931311,1757179846666,-500.0,0.00032602,2]
[383931312,1757179846676,-500.0,0.00032602,2]
[383931313,1757179846685,-500.0,0.00032602,2]
[383931314,1757179846695,-1291.0,0.00032602,2]
[383931315,1757179846705,-500.0,0.00032602,2]
[383931316,1757179846714,-500.0,0.00032602,2]
[383931317,1757179846724,-1477.0,0.00032602,2]
[383931318,1757179846733,-645.0,0.00032602,2]
[383931319,1757179846743,-1339.0,0.0003261,2]
[383931320,1757179846753,-3000.0,0.00032612,5]
[383931321,1757179846763,-1059.29610807,0.0003262,2]
[383931322,1757179846773,-5015.0,0.00032652,2]
[383931323,1757179846784,-9884.2,0.000327,7]
[383931324,1757179846794,-514.85095374,0.000327,7]
[383931325,1757179846803,-212.67823062,0.000327,7]
[383931326,1757179846814,-736.55,0.000327,30]
[383931327,1757179846824,-2076.51,0.000327,7]
[383931328,1757179846834,-8136.89,0.000328,2]
[383931329,1757179846843,-7773.2768939,0.000328,2]
[383931330,1757179846855,-600.0,0.00032809,2]
[383931331,1757179846864,-200.0,0.00032809,2]
[383931332,1757179846874,-5888.0,0.00032813,2]
[383931333,1757179847096,-500.0,0.00032822,2]
[383931334,1757179847107,-500.0,0.00032876,2]
[383931335,1757179847116,-500.0,0.00032876,2]
[383931336,1757179847126,-500.0,0.00032876,2]
[383931337,1757179847137,-1291.0,0.00032876,2]
[383931338,1757179847148,-500.0,0.00032876,2]
[383931339,1757179847158,-500.0,0.00032876,2]
[383931340,1757179847169,-1477.0,0.00032876,2]
[383931341,1757179847178,-645.0,0.00032876,2]
[383931342,1757179847188,-500.0,0.00032877,7]
[383931343,1757179847198,-500.0,0.00032877,7]
[383931344,1757179847208,-430.1254172,0.00032877,7]
[383931345,1757179847218,-4282.9887723,0.00032912,2]
[383931346,1757179847227,-211.36,0.00032913,2]
[383931347,1757179847237,-166.67,0.00032968,2]
[383931348,1757179847247,-332.38,0.00032978,2]
[383931349,1757179847256,-160.0,0.00033,7]
[383931350,1757179847266,-3011.38049103,0.00033,7]
[383931351,1757179847276,-1312.0,0.0003302,2]
[383931352,1757179847285,-19999.99,0.00033038,2]
[383931353,1757179847295,-21019.95,0.00033038,30]
[383931354,1757179847305,-200.0,0.00033039,10]
[383931355,1757179847314,-346.92554585,0.00033076,2]
[383931356,1757179847323,-160.0,0.00033076,2]
[383931357,1757179847333,-287.61899177,0.00033076,2]
[383931358,1757179847343,-151.0,0.00033078,2]
[383931359,1757179847352,-200.0,0.00033098,10]
[383931360,1757179847362,-500.0,0.0003315,2]
[383931361,1757179847371,-196.91969704,0.0003315,2]
[383931362,1757179847381,-500.0,0.0003315,2]
[383931363,1757179847392,-1291.0,0.0003315,2]
[383931364,1757179847401,-216.7642418,0.0003315,2]
[383931365,1757179847411,-500.0,0.0003315,2]
[383931366,1757179847421,-1477.0,0.0003315,2]
[383931367,1757179847431,-645.0,0.0003315,2]
[383931368,1757179847440,-200.0,0.00033156,10]
[383931369,1757179847450,-3546.13634117,0.0003316,5]
[383931370,1757179847459,-3476.30033701,0.00033166,2]
[383931371,1757179847469,-4000.0,0.0003319,4]
[383931372,1757179847479,-168.0,0.00033246,7]
[383931373,1757179847490,-600.0,0.00033357,2]
[383931374,1757179847500,-200.0,0.00033357,2]
[383931375,1757179847510,-1284.0,0.0003342,2]
[383931376,1757179847520,-500.0,0.00033424,2]
[383931377,1757179847530,-467.06704154,0.00033424,2]
[383931378,1757179847539,-1291.0,0.00033424,2]
[383931379,1757179847548,-500.0,0.00033424,2]
[383931380,1757179847558,-1477.0,0.00033424,2]
[383931381,1757179847568,-645.0,0.00033424,2]
[383931382,1757179847578,-9884.2,0.000335,14]
[383931383,1757179847587,-5608.0,0.00033524,2]
[383931384,1757179847597,-176.0,0.00033582,2]
[383931385,1757179847607,-151.0,0.00033626,2]
[383931386,1757179847618,-763.7,0.00033649,30]
[383931387,1757179847628,-5888.0,0.00033678,2]
[383931388,1757179847637,-500.0,0.00033698,2]
[383931389,1757179847647,-1291.0,0.00033698,2]
[383931390,1757179847657,-500.0,0.00033698,2]
[383931391,1757179847666,-645.0,0.00033698,2]
[383931392,1757179847676,-1477.0,0.00033698,2]
[383931393,1757179847686,-199.0,0.00033698,7]
[383931394,1757179847696,-736.55,0.000337,30]
[383931395,1757179847706,-8136.89,0.000337,2]
[383931396,1757179847716,-2076.51,0.000337,14]
[383931397,1757179847726,-1425.0,0.00033798,2]
[383931398,1757179847735,-1257.0,0.0003383,2]
[383931399,1757179847746,-2445.71181019,0.00033844,2]
[383931400,1757179847756,-5597.0,0.00033848,7]
[383931401,1757179847765,-4000.0,0.00033871,4]
[383931402,1757179847775,-160.0,0.000339,7]
[383931403,1757179847784,-600.0,0.00033905,2]
[383931404,1757179847794,-1425.0,0.00033957,2]
[383931405,1757179847804,-3011.38049103,0.00033958,2]
[383931406,1757179847814,-350.0,0.00033972,2]
[383931407,1757179847824,-500.0,0.00033972,2]
[383931408,1757179847833,-1291.0,0.00033972,2]
[383931409,1757179847843,-500.0,0.00033972,2]
[383931410,1757179847853,-645.0,0.00033972,2]
[383931411,1757179847863,-1477.0,0.00033972,2]
[383931412,1757179847874,-1059.29610807,0.00033986,2]
[383931413,1757179847884,-300.0,0.00034,120]
[383931414,1757179847894,-200.0,0.00034,30]
[383931415,1757179847903,-2950.42,0.00034,30]
[383931416,1757179847913,-514.85095374,0.00034,30]
[383931417,1757179847922,-212.67823062,0.00034,30]
[383931418,1757179847932,-3011.38049103,0.00034,30]
[383931419,1757179847942,-22476.90620554,0.00034024,2]
[383931420,1757179847952,-1425.0,0.00034065,2]
[383931421,1757179847962,-150.0,0.0003411,2]
[383931422,1757179847972,-150.0,0.0003411,2]
[383931423,1757179847981,-150.0,0.0003411,2]
[383931424,1757179847991,-151.0,0.00034121,2]
[383931425,1757179848006,-151.0,0.00034121,2]
[383931426,1757179848015,-151.0,0.00034121,2]
[383931427,1757179848025,-151.0,0.00034121,2]
[383931428,1757179848035,-151.0,0.00034121,2]
[383931429,1757179848251,-151.0,0.00034121,2]
[383931430,1757179848262,-151.0,0.00034121,2]
[383931431,1757179848272,-166.67,0.00034157,2]
[383931432,1757179848282,-9035.0,0.00034158,3]
[383931433,1757179848292,-155.29303732,0.00034174,2]
[383931434,1757179848301,-176.0,0.00034181,7]
[383931435,1757179848311,-175.92,0.00034233,120]
[383931436,1757179848321,-383.0,0.0003424,2]
[383931437,1757179848332,-1230.0,0.0003424,2]
[383931438,1757179848341,-500.0,0.00034246,2]
[383931439,1757179848351,-1291.0,0.00034246,2]
[383931440,1757179848361,-500.0,0.00034246,2]
[383931441,1757179848370,-645.0,0.00034246,2]
[383931442,1757179848380,-1477.0,0.00034246,2]
[383931443,1757179848389,-9884.2,0.000343,14]
[383931444,1757179848399,-211.36,0.00034344,2]
[383931445,1757179848409,-231.76,0.0003438,30]
[383931446,1757179848419,-470.72,0.00034384,2]
[383931447,1757179848428,-470.72,0.00034384,2]
[383931448,1757179848438,-470.72,0.00034384,2]
[383931449,1757179848447,-470.72,0.00034384,2]
[383931450,1757179848457,-470.72,0.00034384,2]
[383931451,1757179848467,-466.8,0.00034384,2]
[383931452,1757179848476,-5888.0,0.00034429,2]
[383931453,1757179848486,-359.76179104,0.00034445,2]
[383931454,1757179848495,-160.0,0.00034445,2]
[383931455,1757179848505,-298.26089446,0.00034445,2]
[383931456,1757179848515,-600.0,0.00034453,2]
[383931457,1757179848525,-2000.0,0.000345,2]
[383931458,1757179848534,-10224.08783473,0.000345,120]
[383931459,1757179848545,-235.81,0.0003452,2]
[383931460,1757179848554,-1291.0,0.0003452,2]
[383931461,1757179848564,-500.0,0.0003452,2]
[383931462,1757179848574,-645.0,0.0003452,2]
[383931463,1757179848584,-1477.0,0.0003452,2]
[383931464,1757179848594,-4000.0,0.00034552,4]
[383931465,1757179848605,-3476.30033701,0.00034589,2]
[383931466,1757179848614,-8136.89,0.000346,2]
[383931467,1757179848624,-1202.0,0.0003465,2]
[383931468,1757179848634,-736.55,0.000347,30]
[383931469,1757179848644,-2076.51,0.000347,14]
[383931470,1757179848654,-2507.0,0.00034771,2]
[383931471,1757179848664,-1291.0,0.00034794,2]
[383931472,1757179848674,-171.50453344,0.00034794,2]
[383931473,1757179848683,-645.0,0.00034794,2]
[383931474,1757179848693,-1477.0,0.00034794,2]
[383931475,1757179848702,-269.20707185,0.000348,4]
[383931476,1757179848712,-168.91930302,0.0003489,14]
[383931477,1757179848722,-150.0,0.00034932,2]
[383931478,1757179848732,-166.62,0.00034932,2]
[383931479,1757179848742,-541.44,0.00034932,2]
[383931480,1757179848752,-409.88,0.00034932,2]
[383931481,1757179848761,-174.35,0.00034932,2]
[383931482,1757179848771,-166.62,0.00034932,2]
[383931483,1757179848781,-541.44,0.00034932,2]
[383931484,1757179848790,-150.0,0.00034932,2]
[383931485,1757179848800,-409.88,0.00034932,2]
[383931486,1757179848809,-150.0,0.00034932,2]
[383931487,1757179848819,-541.44,0.00034932,2]
[383931488,1757179848829,-174.35,0.00034932,2]
[383931489,1757179848839,-409.88,0.00034932,2]
[383931490,1757179848849,-166.62,0.00034932,2]
[383931491,1757179848859,-541.44,0.00034932,2]
[383931492,1757179848870,-409.88,0.00034932,2]
[383931493,1757179848880,-174.35,0.00034932,2]
[383931494,1757179848890,-166.62,0.00034932,2]
[383931495,1757179848901,-169.3,0.00034932,2]
[383931496,1757179848912,-166.62,0.00034932,2]
[383931497,1757179848922,-409.88,0.00034932,2]
[383931498,1757179848931,-541.44,0.00034932,2]
[383931499,1757179848941,-782.8,0.00034932,2]
[383931500,1757179848951,-541.44,0.00034932,2]
[383931501,1757179848960,-541.44,0.00034932,2]
[383931502,1757179848970,-541.44,0.00034932,2]
[383931503,1757179848979,-179.78,0.00034932,2]
[383931504,1757179848989,-231.76,0.00034963,30]
[383931505,1757179849000,-178.71,0.00034996,2]
[383931506,1757179849011,-300.0,0.00035,120]
[383931507,1757179849021,-160.0,0.00035,30]
[383931508,1757179849031,-50319.93429139,0.00035,30]
[383931509,1757179849041,-3011.38049103,0.00035,30]
[383931510,1757179849051,-10164.56673074,0.00035,2]
[383931511,1757179849061,-668.60164964,0.00035001,2]
[383931512,1757179849071,-1175.0,0.0003506,2]
[383931513,1757179849083,-1291.0,0.00035067,2]
[383931514,1757179849092,-645.0,0.00035067,2]
[383931515,1757179849102,-1477.0,0.00035067,2]
[383931516,1757179849111,-4000.0,0.00035233,4]
[383931517,1757179849121,-9884.2,0.000353,14]
[383931518,1757179849131,-1425.0,0.00035306,2]
[383931519,1757179849141,-159.87,0.00035328,2]
[383931520,1757179849151,-1291.0,0.00035341,2]
[383931521,1757179849161,-645.0,0.00035341,2]
[383931522,1757179849172,-1477.0,0.00035341,2]
[383931523,1757179849181,-567.68,0.00035342,2]
[383931524,1757179849191,-1533.01,0.00035342,2]
[383931525,1757179849200,-1059.29610807,0.00035352,2]
[383931526,1757179849211,-1425.0,0.0003541,2]
[383931527,1757179849221,-15375.28386137,0.00035422,5]
[383931528,1757179849231,-5888.0,0.00035426,7]
[383931529,1757179849242,-1148.0,0.0003547,2]
[383931530,1757179849252,-150.0,0.00035479,2]
[383931531,1757179849261,-150.0,0.00035479,2]
[383931532,1757179849271,-503.17353489,0.000355,4]
[383931533,1757179849280,-5017.0,0.00035502,2]
[383931534,1757179849290,-1300.76728048,0.00035516,2]
[383931535,1757179849300,-4182.08393392,0.00035516,2]
[383931536,1757179849310,-249.78553322,0.00035516,2]
[383931537,1757179849320,-170.0686908,0.00035516,2]
[383931538,1757179849330,-231.76,0.00035546,60]
[383931539,1757179849341,-8136.89,0.000356,2]
[383931540,1757179849351,-5608.0,0.00035602,120]
[383931541,1757179849361,-212.46113,0.00035613,14]
[383931542,1757179849371,-1291.0,0.00035615,2]
[383931543,1757179849381,-1477.0,0.00035615,2]
[383931544,1757179849391,-645.0,0.00035615,2]
[383931545,1757179849402,-400.0,0.00035616,8]
[383931546,1757179849412,-400.0,0.00035616,8]
[383931547,1757179849422,-400.0,0.00035616,8]
[383931548,1757179849432,-224.91732011,0.00035616,8]
[383931549,1757179849442,-400.0,0.00035616,8]
[383931550,1757179849452,-400.0,0.00035616,8]
[383931551,1757179849461,-402.00206482,0.00035616,8]
[383931552,1757179849472,-278.95207059,0.00035616,8]
[383931553,1757179849482,-400.0,0.00035616,8]
[383931554,1757179849492,-400.0,0.00035616,8]
[383931555,1757179849501,-400.0,0.00035616,8]
[383931556,1757179849511,-400.0,0.00035616,8]
[383931557,1757179849520,-402.21107419,0.00035616,8]
[383931558,1757179849530,-411.76660259,0.00035616,8]
[383931559,1757179849540,-409.93436538,0.00035616,8]
[383931560,1757179849550,-400.0,0.00035616,8]
[383931561,1757179849560,-400.0,0.00035616,8]
[383931562,1757179849569,-400.0,0.00035616,8]
[383931563,1757179849579,-400.0,0.00035616,8]
[383931564,1757179849588,-400.0,0.00035616,8]
[383931565,1757179849597,-400.0,0.00035616,8]
[383931566,1757179849607,-400.0,0.00035616,8]
[383931567,1757179849616,-400.0,0.00035616,8]
[383931568,1757179849625,-380.45085392,0.00035616,8]
[383931569,1757179849635,-400.0,0.00035616,8]
[383931570,1757179849645,-400.0,0.00035616,8]
[383931571,1757179849655,-400.0,0.00035616,8]
[383931572,1757179849665,-400.0,0.00035616,8]
[383931573,1757179849674,-401.64931279,0.00035616,8]
[383931574,1757179849683,-210.49803182,0.00035616,8]
[383931575,1757179849693,-400.0,0.00035616,8]
[383931576,1757179849703,-400.0,0.00035616,8]
[383931577,1757179849712,-401.37512932,0.00035616,8]
[383931578,1757179849722,-400.0,0.00035616,8]
[383931579,1757179849731,-400.0,0.00035616,8]
[383931580,1757179849740,-400.0,0.00035616,8]
[383931581,1757179849749,-400.0,0.00035616,8]
[383931582,1757179849758,-400.0,0.00035616,8]
[383931583,1757179849768,-400.0,0.00035616,8]
[383931584,1757179849777,-400.0,0.00035616,8]
[383931585,1757179849787,-400.0,0.00035616,8]
[383931586,1757179849796,-567.5,0.00035616,8]
[383931587,1757179849805,-400.0,0.00035616,8]
[383931588,1757179849814,-401.73495592,0.00035616,8]
[383931589,1757179849824,-157.23860949,0.00035616,8]
[383931590,1757179849833,-403.30458217,0.00035616,8]
[383931591,1757179849843,-400.0,0.00035616,8]
[383931592,1757179849852,-432.88,0.00035616,8]
[383931593,1757179849862,-492.40488804,0.00035616,8]
[383931594,1757179849871,-401.75787635,0.00035616,8]
[383931595,1757179849881,-696.26,0.00035616,8]
[383931596,1757179849891,-400.0,0.00035616,8]
[383931597,1757179849901,-401.87503571,0.00035616,8]
[383931598,1757179849911,-400.0,0.00035616,8]
[383931599,1757179849921,-400.0,0.00035616,8]
[383931600,1757179849931,-400.0,0.00035616,8]
[383931601,1757179849941,-400.0,0.00035616,8]
[383931602,1757179849951,-400.0,0.00035616,8]
[383931603,1757179849962,-400.0,0.00035616,8]
[383931604,1757179849972,-404.90869628,0.00035616,8]
[383931605,1757179849981,-400.0,0.00035616,8]
[383931606,1757179849991,-401.13953025,0.00035616,8]
[383931607,1757179850006,-402.20248286,0.00035616,8]
[383931608,1757179850015,-653.98,0.00035616,8]
[383931609,1757179850024,-400.0,0.00035616,8]
[383931610,1757179850033,-400.0,0.00035616,8]
[383931611,1757179850043,-400.0,0.00035616,8]
[383931612,1757179850053,-400.0,0.00035616,8]
[383931613,1757179850062,-400.0,0.00035616,8]
[383931614,1757179850073,-537.36477562,0.00035616,8]
[383931615,1757179850082,-400.0,0.00035616,8]
[383931616,1757179850093,-402.44938841,0.00035616,8]
[383931617,1757179850103,-400.0,0.00035616,8]
[383931618,1757179850112,-661.76,0.00035616,8]
[383931619,1757179850122,-400.0,0.00035616,8]
[383931620,1757179850132,-400.0,0.00035616,8]
[383931621,1757179850142,-558.06,0.00035616,8]
[383931622,1757179850151,-400.0,0.00035616,8]
[383931623,1757179850161,-400.0,0.00035616,8]
[383931624,1757179850170,-400.0,0.00035616,8]
[383931625,1757179850180,-400.0,0.00035616,8]
[383931626,1757179850189,-400.0,0.00035616,8]
[383931627,1757179850199,-400.0,0.00035616,8]
[383931628,1757179850208,-400.0,0.00035616,8]
[383931629,1757179850219,-400.0,0.00035616,8]
[383931630,1757179850229,-169.094769,0.00035616,10]
[383931631,1757179850239,-400.0,0.00035616,8]
[383931632,1757179850455,-400.0,0.00035616,8]
[383931633,1757179850465,-400.0,0.00035616,8]
[383931634,1757179850475,-522.67,0.00035616,8]
[383931635,1757179850484,-400.0,0.00035616,8]
[383931636,1757179850493,-332.22348564,0.00035616,8]
[383931637,1757179850502,-400.0,0.00035616,8]
[383931638,1757179850512,-400.0,0.00035616,2]
[383931639,1757179850523,-400.0,0.00035616,8]
[383931640,1757179850533,-400.0,0.00035616,2]
[383931641,1757179850542,-400.0,0.00035616,8]
[383931642,1757179850552,-400.0,0.00035616,8]
[383931643,1757179850561,-400.0,0.00035616,8]
[383931644,1757179850571,-400.0,0.00035616,8]
[383931645,1757179850581,-400.0,0.00035616,8]
[383931646,1757179850591,-573.22,0.00035616,8]
[383931647,1757179850601,-400.0,0.00035616,8]
[383931648,1757179850611,-400.0,0.00035616,8]
[383931649,1757179850621,-400.0,0.00035616,8]
[383931650,1757179850634,-400.0,0.00035616,8]
[383931651,1757179850645,-431.9845738,0.00035616,8]
[383931652,1757179850655,-400.0,0.00035616,8]
[383931653,1757179850665,-400.0,0.00035616,8]
[383931654,1757179850674,-403.63360474,0.00035616,8]
[383931655,1757179850684,-404.30675123,0.00035616,8]
[383931656,1757179850694,-400.0,0.00035616,8]
[383931657,1757179850704,-400.0,0.00035616,8]
[383931658,1757179850714,-163.86199217,0.00035616,8]
[383931659,1757179850724,-400.0,0.00035616,8]
[383931660,1757179850733,-400.0,0.00035616,8]
[383931661,1757179850743,-222.91443823,0.00035616,8]
[383931662,1757179850752,-400.0,0.00035616,8]
[383931663,1757179850761,-400.0,0.00035616,8]
[383931664,1757179850770,-400.0,0.00035616,8]
[383931665,1757179850780,-666.62,0.00035616,8]
[383931666,1757179850790,-400.0,0.00035616,8]
[383931667,1757179850799,-400.0,0.00035616,8]
[383931668,1757179850809,-400.0,0.00035616,8]
[383931669,1757179850818,-400.0,0.00035616,8]
[383931670,1757179850828,-520.90986342,0.00035616,8]
[383931671,1757179850838,-400.0,0.00035616,8]
[383931672,1757179850848,-400.0,0.00035616,8]
[383931673,1757179850858,-400.0,0.00035616,8]
[383931674,1757179850869,-400.0,0.00035616,8]
[383931675,1757179850879,-400.0,0.00035616,8]
[383931676,1757179850888,-400.0,0.00035616,8]
[383931677,1757179850898,-400.0,0.00035616,8]
[383931678,1757179850908,-400.0,0.00035616,8]
[383931679,1757179850918,-400.0,0.00035616,8]
[383931680,1757179850927,-400.0,0.00035616,8]
[383931681,1757179850936,-400.0,0.00035616,8]
[383931682,1757179850946,-780.1,0.00035616,8]
[383931683,1757179850957,-400.0,0.00035616,8]
[383931684,1757179850966,-400.0,0.00035616,8]
[383931685,1757179850976,-400.0,0.00035616,8]
[383931686,1757179850986,-400.0,0.00035616,8]
[383931687,1757179850995,-694.41,0.00035616,8]
[383931688,1757179851008,-400.0,0.00035616,8]
[383931689,1757179851018,-400.0,0.00035616,8]
[383931690,1757179851028,-400.0,0.00035616,8]
[383931691,1757179851039,-400.0,0.00035616,8]
[383931692,1757179851050,-400.0,0.00035616,8]
[383931693,1757179851061,-400.0,0.00035616,8]
[383931694,1757179851071,-400.0,0.00035616,8]
[383931695,1757179851081,-649.75,0.00035616,8]
[383931696,1757179851091,-400.0,0.00035616,8]
[383931697,1757179851101,-563.53,0.00035616,8]
[383931698,1757179851112,-400.0,0.00035616,8]
[383931699,1757179851122,-465.85,0.00035616,8]
[383931700,1757179851131,-400.0,0.00035616,8]
[383931701,1757179851142,-663.43,0.00035616,8]
[383931702,1757179851151,-770.78,0.00035616,8]
[383931703,1757179851162,-400.0,0.00035616,8]
[383931704,1757179851173,-400.0,0.00035616,8]
[383931705,1757179851183,-400.0,0.00035616,8]
[383931706,1757179851192,-590.13,0.00035616,8]
[383931707,1757179851202,-400.0,0.00035616,8]
[383931708,1757179851212,-400.0,0.00035616,8]
[383931709,1757179851222,-400.0,0.00035616,8]
[383931710,1757179851233,-400.0,0.00035616,8]
[383931711,1757179851243,-582.65,0.00035616,8]
[383931712,1757179851254,-847.63,0.00035616,8]
[383931713,1757179851264,-400.0,0.00035616,8]
[383931714,1757179851274,-400.0,0.00035616,8]
[383931715,1757179851284,-400.0,0.00035616,8]
[383931716,1757179851294,-400.0,0.00035616,8]
[383931717,1757179851304,-400.0,0.00035616,8]
[383931718,1757179851313,-250.11584825,0.00035616,8]
[383931719,1757179851323,-400.0,0.00035616,8]
[383931720,1757179851332,-500.0,0.00035616,8]
[383931721,1757179851342,-402.65552815,0.00035616,8]
[383931722,1757179851351,-400.0,0.00035616,8]
[383931723,1757179851360,-400.0,0.00035616,8]
[383931724,1757179851369,-400.0,0.00035616,8]
[383931725,1757179851378,-400.0,0.00035616,8]
[383931726,1757179851388,-511.95,0.00035616,8]
[383931727,1757179851398,-400.0,0.00035616,8]
[383931728,1757179851408,-400.0,0.00035616,8]
[383931729,1757179851417,-549.93,0.00035616,8]
[383931730,1757179851427,-400.0,0.00035616,8]
[383931731,1757179851436,-400.0,0.00035616,8]
[383931732,1757179851446,-400.0,0.00035616,8]
[383931733,1757179851455,-619.14,0.00035616,8]
[383931734,1757179851464,-400.0,0.00035616,8]
[383931735,1757179851475,-400.0,0.00035616,8]
[383931736,1757179851484,-400.0,0.00035616,8]
[383931737,1757179851494,-402.48789976,0.00035616,8]
[383931738,1757179851503,-400.0,0.00035616,8]
[383931739,1757179851512,-400.0,0.00035616,8]
[383931740,1757179851522,-400.0,0.00035616,8]
[383931741,1757179851531,-400.0,0.00035616,8]
[383931742,1757179851541,-438.54,0.00035616,8]
[383931743,1757179851550,-400.0,0.00035616,8]
[383931744,1757179851560,-400.0,0.00035616,8]
[383931745,1757179851569,-400.0,0.00035616,8]
[383931746,1757179851578,-400.0,0.00035616,8]
[383931747,1757179851588,-400.0,0.00035616,8]
[383931748,1757179851598,-400.0,0.00035616,8]
[383931749,1757179851607,-400.0,0.00035616,8]
[383931750,1757179851616,-400.0,0.00035616,8]
[383931751,1757179851626,-400.0,0.00035616,8]
[383931752,1757179851635,-400.0,0.00035616,8]
[383931753,1757179851644,-400.0,0.00035616,8]
[383931754,1757179851654,-400.0,0.00035616,8]
[383931755,1757179851664,-400.0,0.00035616,8]
[383931756,1757179851674,-400.0,0.00035616,8]
[383931757,1757179851684,-411.23939815,0.00035616,8]
[383931758,1757179851694,-400.0,0.00035616,8]
[383931759,1757179851704,-415.44459749,0.00035616,8]
[383931760,1757179851714,-400.0,0.00035616,8]
[383931761,1757179851724,-400.0,0.00035616,8]
[383931762,1757179851733,-400.0,0.00035616,8]
[383931763,1757179851742,-400.0,0.00035616,8]
[383931764,1757179851752,-400.0,0.00035616,8]
[383931765,1757179851761,-400.0,0.00035616,8]
[383931766,1757179851772,-400.0,0.00035616,8]
[383931767,1757179851783,-400.0,0.00035616,8]
[383931768,1757179851794,-400.0,0.00035616,8]
[383931769,1757179851804,-400.0,0.00035616,8]
[383931770,1757179851827,-400.0,0.00035616,8]
[383931771,1757179851845,-421.66592096,0.00035616,8]
[383931772,1757179851865,-400.0,0.00035616,8]
[383931773,1757179851884,-482.02,0.00035616,8]
[383931774,1757179851900,-400.0,0.00035616,8]
[383931775,1757179851918,-400.0,0.00035616,8]
[383931776,1757179851937,-414.24229875,0.00035616,8]
[383931777,1757179851959,-400.0,0.00035616,8]
[383931778,1757179851979,-400.0,0.00035616,8]